[Event "Titled Tuesday Blitz August 3 2021"]
[White "Berezin, Viktor"]
[Black "Liyanage, Ranindu Dilshan"]
[WhiteFideId "14107872"]
[BlackFideId "9915834"]
[WhiteElo "2310"]
[BlackElo "1839"]
[Result "0-1"]
[Round "09"]
[TimeControl "180+1"]
[Date "2021.08.03"]
[WhiteClock "0:00:16"]
[BlackClock "0:00:08"]

1. d4 {[%clk 0:03:00]}  Nf6 {[%clk 0:02:58]} 2. c4 {[%clk 0:03:01]}  e6 {[%clk 0:02:58]} 3. Nf3 {[%clk 0:03:01]}  d5 {[%clk 0:02:58]} 4. g3 {[%clk 0:03:01]}  Be7 {[%clk 0:02:58]} 5. Bg2 {[%clk 0:03:02]}  O-O {[%clk 0:02:59]} 6. O-O {[%clk 0:03:02]}  dxc4 {[%clk 0:03:00]} 7. Qc2 {[%clk 0:03:02]}  a6 {[%clk 0:03:00]} 8. a4 {[%clk 0:03:03]}  Nc6 {[%clk 0:03:00]} 9. Rd1 {[%clk 0:02:52]}  Na5 {[%clk 0:02:55]} 10. Nbd2 {[%clk 0:02:50]}  b5 {[%clk 0:02:43]} 11. axb5 {[%clk 0:02:38]}  axb5 {[%clk 0:02:41]} 12. Ne5 {[%clk 0:02:37]}  Bb7 {[%clk 0:02:38]} 13. Bxb7 {[%clk 0:02:16]}  Nxb7 {[%clk 0:02:35]} 14. Rxa8 {[%clk 0:02:17]}  Qxa8 {[%clk 0:02:35]} 15. b3 {[%clk 0:02:18]}  cxb3 {[%clk 0:02:14]} 16. Nxb3 {[%clk 0:02:17]}  Bd6 {[%clk 0:02:11]} 17. Bb2 {[%clk 0:02:12]}  Nd5 {[%clk 0:01:52]} 18. e4 {[%clk 0:02:07]}  Nb4 {[%clk 0:01:49]} 19. Qc3 {[%clk 0:01:59]}  Rd8 {[%clk 0:01:18]} 20. d5 {[%clk 0:01:46]}  f6 {[%clk 0:00:57]} 21. Nc6 {[%clk 0:01:42]}  Nxc6 {[%clk 0:00:41]} 22. dxc6 {[%clk 0:01:43]}  Be5 {[%clk 0:00:41]} 23. Nd4 {[%clk 0:01:22]}  Nd6 {[%clk 0:00:30]} 24. Ra1 {[%clk 0:01:06]}  Qb8 {[%clk 0:00:26]} 25. Qb3 {[%clk 0:00:45]}  Nc4 {[%clk 0:00:25]} 26. Rd1 {[%clk 0:00:30]}  Kf7 {[%clk 0:00:15]} 27. Ba1 {[%clk 0:00:29]}  Qb6 {[%clk 0:00:12]} 28. Ne2 {[%clk 0:00:24]}  Rxd1+ {[%clk 0:00:11]} 29. Qxd1 {[%clk 0:00:24]}  Bxa1 {[%clk 0:00:11]} 30. Qxa1 {[%clk 0:00:25]}  Qxc6 {[%clk 0:00:11]} 31. Qd4 {[%clk 0:00:26]}  Qd6 {[%clk 0:00:10]} 32. Qa7 {[%clk 0:00:24]}  Qd1+ {[%clk 0:00:09]} 33. Kg2 {[%clk 0:00:25]}  Qxe2 {[%clk 0:00:09]} 34. Qxc7+ {[%clk 0:00:25]}  Kg6 {[%clk 0:00:10]} 35. Qf4 {[%clk 0:00:26]}  Ne5 {[%clk 0:00:10]} 36. h4 {[%clk 0:00:25]}  h5 {[%clk 0:00:09]} 37. Qc1 {[%clk 0:00:20]}  b4 {[%clk 0:00:09]} 38. Qb1 {[%clk 0:00:20]}  Qf3+ {[%clk 0:00:07]} 39. Kg1 {[%clk 0:00:19]}  b3 {[%clk 0:00:07]} 40. Kf1 {[%clk 0:00:18]}  Nd3 {[%clk 0:00:07]} 41. Kg1 {[%clk 0:00:18]}  Qxf2+ {[%clk 0:00:08]} 42. Kh1 {[%clk 0:00:18]}  Qf3+ {[%clk 0:00:08]} 43. Kh2 {[%clk 0:00:19]}  Qxe4 {[%clk 0:00:09]} 44. Qf1 {[%clk 0:00:17]}  Ne5 {[%clk 0:00:07]} 45. Kh3 {[%clk 0:00:17]}  Qg4+ {[%clk 0:00:07]} 46. Kh2 {[%clk 0:00:17]}  Qf3 {[%clk 0:00:07]} 47. Qb1+ {[%clk 0:00:17]}  f5 {[%clk 0:00:07]} 48. Qb2 {[%clk 0:00:17]}  Ng4+ {[%clk 0:00:07]} 49. Kh3 {[%clk 0:00:17]}  Qh1+ {[%clk 0:00:07]} 50. Qh2 {[%clk 0:00:16]}  Qxh2# {[%clk 0:00:08]} 0-1


[Site "https://www.chess.com"]

[Event "Titled Tuesday Blitz August 3 2021"]
[White "Buscar, Michael"]
[Black "Drogovoz, Irina"]
[WhiteFideId "2603616"]
[BlackFideId "4176715"]
[WhiteElo "2010"]
[BlackElo "2163"]
[Result "1/2-1/2"]
[Round "09"]
[TimeControl "180+1"]
[Date "2021.08.03"]
[WhiteClock "0:00:21"]
[BlackClock "0:00:55"]

1. d4 {[%clk 0:02:59]}  Nf6 {[%clk 0:02:59]} 2. c4 {[%clk 0:02:59]}  g6 {[%clk 0:03:00]} 3. Nf3 {[%clk 0:02:57]}  Bg7 {[%clk 0:03:00]} 4. g3 {[%clk 0:02:58]}  O-O {[%clk 0:02:59]} 5. Bg2 {[%clk 0:02:58]}  d5 {[%clk 0:03:00]} 6. O-O {[%clk 0:02:58]}  dxc4 {[%clk 0:02:59]} 7. Na3 {[%clk 0:02:55]}  c3 {[%clk 0:02:59]} 8. bxc3 {[%clk 0:02:53]}  c5 {[%clk 0:02:59]} 9. Nc4 {[%clk 0:02:41]}  Nc6 {[%clk 0:02:57]} 10. Ba3 {[%clk 0:02:30]}  Ne4 {[%clk 0:02:55]} 11. Qb3 {[%clk 0:02:16]}  cxd4 {[%clk 0:02:53]} 12. cxd4 {[%clk 0:02:14]}  Be6 {[%clk 0:02:39]} 13. Qxb7 {[%clk 0:02:05]}  Rc8 {[%clk 0:02:33]} 14. Nce5 {[%clk 0:01:57]}  Nxd4 {[%clk 0:02:29]} 15. Bxe7 {[%clk 0:01:53]}  Nxf3+ {[%clk 0:02:20]} 16. Nxf3 {[%clk 0:01:45]}  Nd6 {[%clk 0:01:52]} 17. Qxa7 {[%clk 0:01:29]}  Ra8 {[%clk 0:01:52]} 18. Bxd8 {[%clk 0:01:23]}  Rxa7 {[%clk 0:01:51]} 19. Bb6 {[%clk 0:01:24]}  Rxa2 {[%clk 0:01:38]} 20. Rxa2 {[%clk 0:01:22]}  Bxa2 {[%clk 0:01:39]} 21. Bc5 {[%clk 0:01:22]}  Rd8 {[%clk 0:01:37]} 22. Rd1 {[%clk 0:01:18]}  Nb7 {[%clk 0:01:36]} 23. Rxd8+ {[%clk 0:01:16]}  Nxd8 {[%clk 0:01:37]} 24. Nd4 {[%clk 0:01:12]}  Ne6 {[%clk 0:01:30]} 25. Nxe6 {[%clk 0:01:11]}  Bxe6 {[%clk 0:01:31]} 26. h4 {[%clk 0:01:11]}  h5 {[%clk 0:01:30]} 27. Be4 {[%clk 0:01:04]}  Bc4 {[%clk 0:01:30]} 28. e3 {[%clk 0:00:58]}  Bc3 {[%clk 0:01:28]} 29. Kg2 {[%clk 0:00:52]}  Kg7 {[%clk 0:01:29]} 30. Bf3 {[%clk 0:00:51]}  Kg8 {[%clk 0:01:24]} 31. Bc6 {[%clk 0:00:47]}  Bd3 {[%clk 0:01:23]} 32. Kf3 {[%clk 0:00:46]}  Bf5 {[%clk 0:01:22]} 33. Be4 {[%clk 0:00:43]}  Bg4+ {[%clk 0:01:22]} 34. Kg2 {[%clk 0:00:44]}  Be2 {[%clk 0:01:22]} 35. f3 {[%clk 0:00:44]}  Bc4 {[%clk 0:01:21]} 36. Bc6 {[%clk 0:00:43]}  Be1 {[%clk 0:01:20]} 37. e4 {[%clk 0:00:42]}  Bc3 {[%clk 0:01:20]} 38. Be3 {[%clk 0:00:41]}  Kg7 {[%clk 0:01:19]} 39. Kf2 {[%clk 0:00:37]}  Kf6 {[%clk 0:01:20]} 40. Be8 {[%clk 0:00:35]}  Ke6 {[%clk 0:01:18]} 41. Ba4 {[%clk 0:00:35]}  f5 {[%clk 0:01:15]} 42. exf5+ {[%clk 0:00:32]}  Kxf5 {[%clk 0:01:15]} 43. Bc2+ {[%clk 0:00:31]}  Kf6 {[%clk 0:01:15]} 44. Bg5+ {[%clk 0:00:32]}  Kf7 {[%clk 0:01:16]} 45. Ke3 {[%clk 0:00:31]}  Bb2 {[%clk 0:01:15]} 46. g4 {[%clk 0:00:27]}  hxg4 {[%clk 0:01:14]} 47. fxg4 {[%clk 0:00:27]}  Bc1+ {[%clk 0:01:15]} 48. Kf3 {[%clk 0:00:25]}  Bxg5 {[%clk 0:01:01]} 49. hxg5 {[%clk 0:00:26]}  Kg7 {[%clk 0:01:01]} 50. Kf4 {[%clk 0:00:23]}  Bd5 {[%clk 0:00:59]} 51. Be4 {[%clk 0:00:22]}  Bb3 {[%clk 0:00:58]} 52. Ke5 {[%clk 0:00:23]}  Ba2 {[%clk 0:00:58]} 53. Bxg6 {[%clk 0:00:20]}  Kxg6 {[%clk 0:00:57]} 54. Kd4 {[%clk 0:00:20]}  Kxg5 {[%clk 0:00:56]} 55. Kc3 {[%clk 0:00:21]}  Kxg4 {[%clk 0:00:55]} 1/2-1/2


[Site "https://www.chess.com"]

[Event "Titled Tuesday Blitz August 3 2021"]
[White "Daulyte-Cornette, Deimante"]
[Black "Terletsky, Oleg"]
[WhiteFideId "12802859"]
[BlackFideId "14116774"]
[WhiteElo "2285"]
[BlackElo "2094"]
[Result "0-1"]
[Round "09"]
[TimeControl "180+1"]
[Date "2021.08.03"]
[WhiteClock "0:00:14"]
[BlackClock "0:01:46"]

1. e4 {[%clk 0:03:00]}  e5 {[%clk 0:02:58]} 2. Bc4 {[%clk 0:02:59]}  Nf6 {[%clk 0:02:56]} 3. Nc3 {[%clk 0:02:58]}  Nc6 {[%clk 0:02:55]} 4. d3 {[%clk 0:02:56]}  Bc5 {[%clk 0:02:55]} 5. f4 {[%clk 0:02:54]}  d6 {[%clk 0:02:56]} 6. f5 {[%clk 0:02:51]}  Nd4 {[%clk 0:02:53]} 7. Nh3 {[%clk 0:02:16]}  c6 {[%clk 0:02:52]} 8. Bg5 {[%clk 0:01:56]}  b5 {[%clk 0:02:51]} 9. Bb3 {[%clk 0:01:55]}  a5 {[%clk 0:02:44]} 10. a3 {[%clk 0:01:46]}  Qb6 {[%clk 0:02:37]} 11. Ba2 {[%clk 0:01:43]}  a4 {[%clk 0:02:32]} 12. Bxf6 {[%clk 0:01:41]}  gxf6 {[%clk 0:02:31]} 13. Qh5 {[%clk 0:01:38]}  Ra7 {[%clk 0:02:22]} 14. O-O-O {[%clk 0:01:33]}  b4 {[%clk 0:02:21]} 15. Nxa4 {[%clk 0:01:24]}  Rxa4 {[%clk 0:02:16]} 16. Qxf7+ {[%clk 0:01:23]}  Kd8 {[%clk 0:02:15]} 17. Qxf6+ {[%clk 0:01:22]}  Kc7 {[%clk 0:02:15]} 18. Qxh8 {[%clk 0:01:16]}  bxa3 {[%clk 0:02:15]} 19. Qxh7+ {[%clk 0:01:07]}  Kb8 {[%clk 0:02:11]} 20. b3 {[%clk 0:01:03]}  Qb4 {[%clk 0:02:04]} 21. Rd2 {[%clk 0:00:25]}  Ra7 {[%clk 0:01:47]} 22. Kd1 {[%clk 0:00:14]}  Rxh7 {[%clk 0:01:46]} 0-1


[Site "https://www.chess.com"]

[Event "Titled Tuesday Blitz August 3 2021"]
[White "Dzhaparov, Medet"]
[Black "Iskusnyh, Sergei"]
[WhiteFideId "13803689"]
[BlackFideId "4120027"]
[WhiteElo "1702"]
[BlackElo "2492"]
[Result "0-1"]
[Round "09"]
[TimeControl "180+1"]
[Date "2021.08.03"]
[WhiteClock "0:00:01"]
[BlackClock "0:00:13"]

1. d4 {[%clk 0:03:00]}  d5 {[%clk 0:02:59]} 2. c4 {[%clk 0:03:00]}  e6 {[%clk 0:02:59]} 3. Nc3 {[%clk 0:02:59]}  dxc4 {[%clk 0:03:00]} 4. e3 {[%clk 0:02:47]}  Nf6 {[%clk 0:02:57]} 5. Bxc4 {[%clk 0:02:46]}  a6 {[%clk 0:02:58]} 6. a4 {[%clk 0:02:42]}  c5 {[%clk 0:02:56]} 7. Nf3 {[%clk 0:02:40]}  Nc6 {[%clk 0:02:57]} 8. O-O {[%clk 0:02:40]}  Qc7 {[%clk 0:02:57]} 9. Qe2 {[%clk 0:02:29]}  Be7 {[%clk 0:02:53]} 10. d5 {[%clk 0:02:24]}  exd5 {[%clk 0:02:52]} 11. Nxd5 {[%clk 0:02:23]}  Nxd5 {[%clk 0:02:52]} 12. Bxd5 {[%clk 0:02:24]}  O-O {[%clk 0:02:52]} 13. Bd2 {[%clk 0:02:11]}  Bg4 {[%clk 0:02:13]} 14. Bc3 {[%clk 0:02:06]}  Rad8 {[%clk 0:02:12]} 15. Rfd1 {[%clk 0:02:01]}  Nb4 {[%clk 0:01:55]} 16. Bb3 {[%clk 0:01:51]}  Bd6 {[%clk 0:01:30]} 17. h3 {[%clk 0:01:27]}  Bh5 {[%clk 0:01:28]} 18. Qc4 {[%clk 0:00:52]}  Qe7 {[%clk 0:01:18]} 19. Rxd6 {[%clk 0:00:12]}  Qxd6 {[%clk 0:01:11]} 20. Ne5 {[%clk 0:00:11]}  Nc6 {[%clk 0:00:55]} 21. Nxc6 {[%clk 0:00:05]}  Qxc6 {[%clk 0:00:54]} 22. a5 {[%clk 0:00:04]}  Bg6 {[%clk 0:00:44]} 23. Rc1 {[%clk 0:00:03]}  Bd3 {[%clk 0:00:42]} 24. Qg4 {[%clk 0:00:03]}  Qg6 {[%clk 0:00:42]} 25. Qf4 {[%clk 0:00:02]}  c4 {[%clk 0:00:40]} 26. Bxc4 {[%clk 0:00:01]}  Bxc4 {[%clk 0:00:38]} 27. Qxc4 {[%clk 0:00:02]}  Rc8 {[%clk 0:00:35]} 28. Qb4 {[%clk 0:00:02]}  Qc6 {[%clk 0:00:27]} 29. Rd1 {[%clk 0:00:03]}  Rfd8 {[%clk 0:00:26]} 30. Rd4 {[%clk 0:00:03]}  Rxd4 {[%clk 0:00:25]} 31. Qxd4 {[%clk 0:00:04]}  f6 {[%clk 0:00:25]} 32. g4 {[%clk 0:00:03]}  Qc5 {[%clk 0:00:22]} 33. Qe4 {[%clk 0:00:03]}  Qc6 {[%clk 0:00:19]} 34. Qd4 {[%clk 0:00:04]}  h6 {[%clk 0:00:16]} 35. h4 {[%clk 0:00:04]}  Qe6 {[%clk 0:00:16]} 36. Kh2 {[%clk 0:00:04]}  Rc6 {[%clk 0:00:13]} 37. Kg2 {[%clk 0:00:02]}  Rd6 {[%clk 0:00:13]} 38. Qa7 {[%clk 0:00:01]}  Qxg4+ {[%clk 0:00:13]} 0-1


[Site "https://www.chess.com"]

[Event "Titled Tuesday Blitz August 3 2021"]
[White "Egorov, Evgeny"]
[Black "Turzo, Attila"]
[WhiteFideId "13700421"]
[BlackFideId "704954"]
[WhiteElo "2422"]
[BlackElo "2434"]
[Result "1-0"]
[Round "09"]
[TimeControl "180+1"]
[Date "2021.08.03"]
[WhiteClock "0:00:59"]
[BlackClock "0:01:03"]

1. e4 {[%clk 0:03:00]}  c5 {[%clk 0:02:59]} 2. Nc3 {[%clk 0:03:00]}  e6 {[%clk 0:02:59]} 3. Nge2 {[%clk 0:02:59]}  Nc6 {[%clk 0:02:58]} 4. g3 {[%clk 0:02:59]}  a6 {[%clk 0:02:53]} 5. Bg2 {[%clk 0:02:59]}  b5 {[%clk 0:02:54]} 6. O-O {[%clk 0:02:58]}  Bb7 {[%clk 0:02:50]} 7. d4 {[%clk 0:02:58]}  cxd4 {[%clk 0:02:50]} 8. Nxd4 {[%clk 0:02:57]}  Qc7 {[%clk 0:02:48]} 9. Re1 {[%clk 0:02:57]}  Rc8 {[%clk 0:02:44]} 10. a4 {[%clk 0:02:56]}  b4 {[%clk 0:02:39]} 11. Nd5 {[%clk 0:02:56]}  Qa5 {[%clk 0:02:20]} 12. Bf4 {[%clk 0:02:28]}  d6 {[%clk 0:02:05]} 13. Qd2 {[%clk 0:02:02]}  Nxd4 {[%clk 0:02:04]} 14. Qxd4 {[%clk 0:02:00]}  e5 {[%clk 0:02:02]} 15. Bxe5 {[%clk 0:01:54]}  dxe5 {[%clk 0:02:03]} 16. Qxe5+ {[%clk 0:01:54]}  Kd8 {[%clk 0:01:41]} 17. Rad1 {[%clk 0:01:51]}  Rc5 {[%clk 0:01:37]} 18. Nb6+ {[%clk 0:01:37]}  Bd5 {[%clk 0:01:25]} 19. Qb8+ {[%clk 0:01:32]}  Ke7 {[%clk 0:01:22]} 20. exd5+ {[%clk 0:01:31]}  Kf6 {[%clk 0:01:18]} 21. Nd7+ {[%clk 0:01:07]}  Kg6 {[%clk 0:01:15]} 22. Nxf8+ {[%clk 0:01:06]}  Kh6 {[%clk 0:01:15]} 23. Qf4+ {[%clk 0:01:04]}  g5 {[%clk 0:01:12]} 24. Qxf7 {[%clk 0:01:01]}  Qd8 {[%clk 0:01:03]} 25. Re6+ {[%clk 0:00:59]} 1-0


[Site "https://www.chess.com"]

[Event "Titled Tuesday Blitz August 3 2021"]
[White "Erdogdu, Mert"]
[Black "Eternauta2400"]
[WhiteFideId "6301495"]
[WhiteElo "2485"]
[BlackElo "2529"]
[Result "0-1"]
[Round "09"]
[TimeControl "180+1"]
[Date "2021.08.03"]
[WhiteClock "0:00:01"]
[BlackClock "0:00:05"]

1. e4 {[%clk 0:03:00]}  e5 {[%clk 0:02:59]} 2. Nf3 {[%clk 0:03:00]}  Nc6 {[%clk 0:02:59]} 3. Bc4 {[%clk 0:03:00]}  Nf6 {[%clk 0:02:56]} 4. d3 {[%clk 0:03:01]}  Bc5 {[%clk 0:02:55]} 5. O-O {[%clk 0:03:00]}  O-O {[%clk 0:02:54]} 6. a4 {[%clk 0:02:57]}  a5 {[%clk 0:02:53]} 7. Nc3 {[%clk 0:02:51]}  h6 {[%clk 0:02:49]} 8. h3 {[%clk 0:02:50]}  d6 {[%clk 0:02:49]} 9. Nd5 {[%clk 0:02:49]}  Nxd5 {[%clk 0:02:43]} 10. Bxd5 {[%clk 0:02:49]}  Ne7 {[%clk 0:02:43]} 11. Bb3 {[%clk 0:02:48]}  Ng6 {[%clk 0:02:39]} 12. c3 {[%clk 0:02:44]}  Bb6 {[%clk 0:02:35]} 13. d4 {[%clk 0:02:42]}  Qf6 {[%clk 0:02:32]} 14. Be3 {[%clk 0:02:41]}  Nf4 {[%clk 0:02:28]} 15. Bxf4 {[%clk 0:02:20]}  Qxf4 {[%clk 0:02:29]} 16. Qd3 {[%clk 0:02:20]}  c6 {[%clk 0:02:24]} 17. Rad1 {[%clk 0:02:17]}  Re8 {[%clk 0:02:21]} 18. Rfe1 {[%clk 0:02:14]}  Qf6 {[%clk 0:02:14]} 19. Nh2 {[%clk 0:02:08]}  Be6 {[%clk 0:02:08]} 20. Ng4 {[%clk 0:02:05]}  Bxg4 {[%clk 0:02:05]} 21. hxg4 {[%clk 0:02:05]}  Re7 {[%clk 0:02:05]} 22. g3 {[%clk 0:02:01]}  exd4 {[%clk 0:02:01]} 23. cxd4 {[%clk 0:02:00]}  Qg5 {[%clk 0:01:59]} 24. Qf3 {[%clk 0:01:46]}  Rae8 {[%clk 0:01:59]} 25. Kg2 {[%clk 0:01:44]}  d5 {[%clk 0:01:54]} 26. e5 {[%clk 0:01:41]}  f6 {[%clk 0:01:45]} 27. exf6 {[%clk 0:01:31]}  Qxf6 {[%clk 0:01:36]} 28. Qxf6 {[%clk 0:01:29]}  gxf6 {[%clk 0:01:36]} 29. Rh1 {[%clk 0:01:18]}  Kg7 {[%clk 0:01:30]} 30. Rd2 {[%clk 0:00:45]}  Re1 {[%clk 0:01:23]} 31. Rxe1 {[%clk 0:00:42]}  Rxe1 {[%clk 0:01:24]} 32. Bc2 {[%clk 0:00:42]}  Kf7 {[%clk 0:01:15]} 33. Bf5 {[%clk 0:00:40]}  Ke7 {[%clk 0:01:08]} 34. Kf3 {[%clk 0:00:33]}  Kd6 {[%clk 0:01:07]} 35. b3 {[%clk 0:00:25]}  Ba7 {[%clk 0:01:00]} 36. Rd3 {[%clk 0:00:24]}  b5 {[%clk 0:00:54]} 37. Re3 {[%clk 0:00:22]}  Rd1 {[%clk 0:00:41]} 38. Re6+ {[%clk 0:00:21]}  Kc7 {[%clk 0:00:41]} 39. Rxf6 {[%clk 0:00:20]}  Bxd4 {[%clk 0:00:41]} 40. Rxh6 {[%clk 0:00:18]}  Rd2 {[%clk 0:00:39]} 41. g5 {[%clk 0:00:17]}  Rxf2+ {[%clk 0:00:38]} 42. Kg4 {[%clk 0:00:17]}  bxa4 {[%clk 0:00:38]} 43. bxa4 {[%clk 0:00:18]}  c5 {[%clk 0:00:37]} 44. g6 {[%clk 0:00:14]}  c4 {[%clk 0:00:37]} 45. g7 {[%clk 0:00:15]}  Bxg7 {[%clk 0:00:34]} 46. Rh7 {[%clk 0:00:16]}  d4 {[%clk 0:00:34]} 47. Rxg7+ {[%clk 0:00:16]}  Kd6 {[%clk 0:00:34]} 48. Rd7+ {[%clk 0:00:16]}  Kc5 {[%clk 0:00:34]} 49. Kg5 {[%clk 0:00:15]}  d3 {[%clk 0:00:25]} 50. g4 {[%clk 0:00:15]}  d2 {[%clk 0:00:24]} 51. Bc2 {[%clk 0:00:14]}  Kb4 {[%clk 0:00:22]} 52. Kg6 {[%clk 0:00:12]}  Kc3 {[%clk 0:00:22]} 53. Bf5 {[%clk 0:00:09]}  Rf1 {[%clk 0:00:20]} 54. g5 {[%clk 0:00:03]}  d1=Q {[%clk 0:00:20]} 55. Rxd1 {[%clk 0:00:04]}  Rxd1 {[%clk 0:00:21]} 56. Kf6 {[%clk 0:00:04]}  Rd8 {[%clk 0:00:19]} 57. g6 {[%clk 0:00:04]}  Kb2 {[%clk 0:00:17]} 58. Ke7 {[%clk 0:00:04]}  Rb8 {[%clk 0:00:15]} 59. Bd7 {[%clk 0:00:03]}  c3 {[%clk 0:00:15]} 60. Be8 {[%clk 0:00:04]}  c2 {[%clk 0:00:15]} 61. g7 {[%clk 0:00:04]}  c1=Q {[%clk 0:00:14]} 62. g8=Q {[%clk 0:00:05]}  Qe3+ {[%clk 0:00:14]} 63. Kd7 {[%clk 0:00:03]}  Qd4+ {[%clk 0:00:12]} 64. Kc6 {[%clk 0:00:03]}  Rc8+ {[%clk 0:00:09]} 65. Kb7 {[%clk 0:00:03]}  Rc5 {[%clk 0:00:06]} 66. Qg2+ {[%clk 0:00:02]}  Rc2 {[%clk 0:00:05]} 67. Qg6 {[%clk 0:00:02]}  Qb4+ {[%clk 0:00:05]} 68. Bb5 {[%clk 0:00:02]}  Qe7+ {[%clk 0:00:05]} 69. Kb8 {[%clk 0:00:02]}  Qd8+ {[%clk 0:00:05]} 70. Kb7 {[%clk 0:00:01]}  Rc7+ {[%clk 0:00:05]} 71. Ka6 {[%clk 0:00:01]}  Qa8+ {[%clk 0:00:05]} 72. Kb6 {[%clk 0:00:01]}  Qb8+ {[%clk 0:00:05]} 73. Ka6 {[%clk 0:00:01]}  Ra7# {[%clk 0:00:05]} 0-1


[Site "https://www.chess.com"]

[Event "Titled Tuesday Blitz August 3 2021"]
[White "Florescu, Codrut-Constantin"]
[Black "Ouellet, Maili-Jade"]
[WhiteFideId "1202200"]
[BlackFideId "2620472"]
[WhiteElo "2243"]
[BlackElo "1886"]
[Result "0-1"]
[Round "09"]
[TimeControl "180+1"]
[Date "2021.08.03"]
[WhiteClock "0:00:20"]
[BlackClock "0:00:08"]

1. d4 {[%clk 0:03:00]}  d5 {[%clk 0:02:59]} 2. c4 {[%clk 0:03:00]}  e6 {[%clk 0:02:59]} 3. Nf3 {[%clk 0:02:59]}  Nf6 {[%clk 0:02:58]} 4. Bg5 {[%clk 0:02:58]}  Be7 {[%clk 0:02:58]} 5. e3 {[%clk 0:02:58]}  O-O {[%clk 0:02:57]} 6. Nc3 {[%clk 0:02:58]}  Nbd7 {[%clk 0:02:56]} 7. Qc2 {[%clk 0:02:57]}  c6 {[%clk 0:02:53]} 8. Rd1 {[%clk 0:02:55]}  h6 {[%clk 0:02:46]} 9. Bh4 {[%clk 0:02:54]}  b6 {[%clk 0:02:46]} 10. cxd5 {[%clk 0:02:52]}  cxd5 {[%clk 0:02:46]} 11. Bd3 {[%clk 0:02:49]}  Bb7 {[%clk 0:02:46]} 12. O-O {[%clk 0:02:48]}  Rc8 {[%clk 0:02:46]} 13. Qe2 {[%clk 0:02:44]}  Ne4 {[%clk 0:02:44]} 14. Bxe7 {[%clk 0:02:42]}  Qxe7 {[%clk 0:02:45]} 15. Bxe4 {[%clk 0:02:31]}  dxe4 {[%clk 0:02:45]} 16. Nd2 {[%clk 0:02:32]}  f5 {[%clk 0:02:40]} 17. a3 {[%clk 0:02:32]}  e5 {[%clk 0:02:39]} 18. d5 {[%clk 0:02:30]}  Nc5 {[%clk 0:02:33]} 19. Qh5 {[%clk 0:02:07]}  Ba6 {[%clk 0:02:24]} 20. d6 {[%clk 0:02:00]}  Qe6 {[%clk 0:02:17]} 21. d7 {[%clk 0:01:53]}  Rcd8 {[%clk 0:02:14]} 22. Rfe1 {[%clk 0:01:53]}  Nd3 {[%clk 0:02:13]} 23. Re2 {[%clk 0:01:40]}  Nxb2 {[%clk 0:02:12]} 24. Rb1 {[%clk 0:01:40]}  Bxe2 {[%clk 0:02:11]} 25. Qxe2 {[%clk 0:01:39]}  Nd3 {[%clk 0:02:10]} 26. f3 {[%clk 0:01:34]}  Rxd7 {[%clk 0:02:09]} 27. fxe4 {[%clk 0:01:33]}  Rfd8 {[%clk 0:01:56]} 28. exf5 {[%clk 0:01:31]}  Qxf5 {[%clk 0:01:55]} 29. Nde4 {[%clk 0:01:32]}  Kh8 {[%clk 0:01:41]} 30. Rf1 {[%clk 0:01:30]}  Qe6 {[%clk 0:01:40]} 31. Qh5 {[%clk 0:01:29]}  Qe8 {[%clk 0:01:18]} 32. Qh4 {[%clk 0:01:23]}  Qg6 {[%clk 0:01:07]} 33. Ng3 {[%clk 0:01:14]}  Nc5 {[%clk 0:00:59]} 34. e4 {[%clk 0:01:10]}  Rd3 {[%clk 0:00:52]} 35. Nd5 {[%clk 0:01:07]}  Ne6 {[%clk 0:00:39]} 36. Rf5 {[%clk 0:00:45]}  Ng5 {[%clk 0:00:22]} 37. Qg4 {[%clk 0:00:34]}  Qd6 {[%clk 0:00:18]} 38. h4 {[%clk 0:00:31]}  Qc5+ {[%clk 0:00:17]} 39. Kh2 {[%clk 0:00:31]}  Ne6 {[%clk 0:00:13]} 40. Rxe5 {[%clk 0:00:26]}  Nd4 {[%clk 0:00:11]} 41. Re7 {[%clk 0:00:21]}  Rg8 {[%clk 0:00:08]} 42. Nh5 {[%clk 0:00:20]}  Nf3+ {[%clk 0:00:08]} 43. gxf3 {[%clk 0:00:19]}  Rxd5 {[%clk 0:00:08]} 44. exd5 {[%clk 0:00:18]}  Qxe7 {[%clk 0:00:08]} 45. Nf4 {[%clk 0:00:17]}  Qd6 {[%clk 0:00:07]} 46. Kh3 {[%clk 0:00:17]}  Kh7 {[%clk 0:00:06]} 47. Qf5+ {[%clk 0:00:17]}  g6 {[%clk 0:00:07]} 48. Qf7+ {[%clk 0:00:17]}  Rg7 {[%clk 0:00:07]} 49. Qe6 {[%clk 0:00:17]}  Qxf4 {[%clk 0:00:06]} 50. h5 {[%clk 0:00:18]}  Qf5+ {[%clk 0:00:06]} 51. Qxf5 {[%clk 0:00:18]}  gxf5 {[%clk 0:00:06]} 52. d6 {[%clk 0:00:19]}  Rd7 {[%clk 0:00:07]} 53. Kg3 {[%clk 0:00:19]}  Rxd6 {[%clk 0:00:08]} 54. Kf4 {[%clk 0:00:20]}  Rd5 {[%clk 0:00:08]} 0-1


[Site "https://www.chess.com"]

[Event "Titled Tuesday Blitz August 3 2021"]
[White "Hansen, Eric"]
[Black "Ivanisevic, Ivan"]
[WhiteFideId "2606771"]
[BlackFideId "912417"]
[WhiteElo "2568"]
[BlackElo "2499"]
[Result "1-0"]
[Round "09"]
[TimeControl "180+1"]
[Date "2021.08.03"]
[WhiteClock "0:01:41"]
[BlackClock "0:00:12"]

1. Nf3 {[%clk 0:03:00]}  d5 {[%clk 0:02:59]} 2. g3 {[%clk 0:03:00]}  g6 {[%clk 0:02:59]} 3. Bg2 {[%clk 0:02:59]}  Bg7 {[%clk 0:02:59]} 4. O-O {[%clk 0:03:00]}  e5 {[%clk 0:02:48]} 5. d3 {[%clk 0:02:59]}  Nc6 {[%clk 0:02:47]} 6. e4 {[%clk 0:02:58]}  dxe4 {[%clk 0:02:48]} 7. dxe4 {[%clk 0:02:57]}  Qxd1 {[%clk 0:02:49]} 8. Rxd1 {[%clk 0:02:58]}  Bg4 {[%clk 0:02:48]} 9. c3 {[%clk 0:02:59]}  Nf6 {[%clk 0:02:46]} 10. Nbd2 {[%clk 0:02:58]}  O-O-O {[%clk 0:02:43]} 11. Re1 {[%clk 0:02:53]}  h6 {[%clk 0:02:27]} 12. Nc4 {[%clk 0:02:52]}  Rhe8 {[%clk 0:02:21]} 13. h3 {[%clk 0:02:51]}  Be6 {[%clk 0:02:11]} 14. Ncxe5 {[%clk 0:02:43]}  Nxe5 {[%clk 0:02:12]} 15. Nxe5 {[%clk 0:02:43]}  Nxe4 {[%clk 0:02:06]} 16. Rxe4 {[%clk 0:02:29]}  Rd1+ {[%clk 0:02:05]} 17. Kh2 {[%clk 0:02:25]}  Bd5 {[%clk 0:00:43]} 18. Rd4 {[%clk 0:02:06]}  Rxc1 {[%clk 0:00:43]} 19. Rxc1 {[%clk 0:02:02]}  Bxg2 {[%clk 0:00:43]} 20. Kxg2 {[%clk 0:02:03]}  Rxe5 {[%clk 0:00:43]} 21. Rcd1 {[%clk 0:02:03]}  Bf6 {[%clk 0:00:36]} 22. Rf4 {[%clk 0:02:02]}  Re6 {[%clk 0:00:35]} 23. Rd3 {[%clk 0:02:02]}  Rb6 {[%clk 0:00:21]} 24. b4 {[%clk 0:01:47]}  Rc6 {[%clk 0:00:21]} 25. b5 {[%clk 0:01:47]}  Rb6 {[%clk 0:00:20]} 26. c4 {[%clk 0:01:45]}  a6 {[%clk 0:00:17]} 27. a4 {[%clk 0:01:45]}  axb5 {[%clk 0:00:17]} 28. axb5 {[%clk 0:01:46]}  Re6 {[%clk 0:00:11]} 29. Rdf3 {[%clk 0:01:46]}  Be7 {[%clk 0:00:12]} 30. Rxf7 {[%clk 0:01:45]}  b6 {[%clk 0:00:12]} 31. Re3 {[%clk 0:01:41]} 1-0


[Site "https://www.chess.com"]